[Event "ROU-chT 1st League 2019"]
[Site "Mamaia"]
[Date "2019.09.26"]
[Round "6.30"]
[White "Bobocea, Laurentiu-Vlad"]
[Black "Ognean, Mihnea-Ionut"]
[Result "1/2-1/2"]
[ECO "E37"]
[WhiteElo "1921"]
[BlackElo "2285"]
[Annotator "NA"]
[PlyCount "77"]
[EventDate "2019.09.21"]
[EventType "team-tourn"]
[EventCountry "ROU"]
[SourceTitle "playchess.com"]
[Source "ChessBase"]
[SourceQuality "1"]
[TimeControl "40/5400+30:1800+30"]

1. d4 {[%emt 0:00:00]} Nf6 {[%emt 0:00:00]} 2. c4 {[%emt 0:00:00]} e6 {[%emt 0:00:00]} 3. Nc3 {[%emt 0:00:00]} Bb4 {[%emt 0:00:04]} 4. Qc2 {[%emt 0:00:00]} d5 {[%emt 0:00:13]} 5. a3 {[%emt 0:00:01]} Bxc3+ {[%emt 0:00:10]} 6. Qxc3 {[%emt 0:00:05]} Ne4 {[%emt 0:00:23]} 7. Qc2 {[%emt 0:00:06]} c5 {[%emt 0:00:07]} 8. dxc5 {[%emt 0:00:06]} Nc6 {[%emt 0:00:32]} 9. Nf3 {[%emt 0:00:07]} Qa5+ {[%emt 0:00:28]} 10. Bd2 {[%emt 0:00:05]} Qxc5 {[%emt 0:00:20]} 11. e3 {[%emt 0:00:04]} Nxd2 {[%emt 0:00:20]} 12. Nxd2 {[%emt 0:00:12]} Bd7 {[%emt 0:00:26]} 13. b4 {[%emt 0:02:01]} Qe7 {[%emt 0:00:04]} 14. Be2 {[%emt 0:04:58]} O-O {[%emt 0:01:00]} 15. O-O {[%emt 0:00:47]} Rac8 {[%emt 0:05:33]} 16. Qb2 {[%emt 0:05:31]} Rfd8 {[%emt 0:05:10]} 17. Rfd1 {[%emt 0:07:22]} Be8 {[%emt 0:02:36]} 18. Rac1 {[%emt 0:03:21]} d4 {[%emt 0:07:52]} 19. Nf3 {[%emt 0:10:44]} dxe3 {[%emt 0:00:48]} 20. fxe3 {[%emt 0:00:09]} f6 {[%emt 0:06:07]} 21. c5 {[%emt 0:17:27]} a6 {[%emt 0:10:15]} 22. Qb3 {[%emt 0:10:53]} Bf7 {[%emt 0:01:45]} 23. Bc4 {[%emt 0:01:05]} e5 {[%emt 0:03:39]} 24. Nd2 {[%emt 0:06:36]} Bxc4 {[%emt 0:02:43]} 25. Nxc4 {[%emt 0:04:36]} Qe6 {[%emt 0:01:52]} 26. Qc2 {[%emt 0:03:35]} Rxd1+ {[%emt 0:08:51]} 27. Rxd1 {[%emt 0:00:06]} Rd8 {[%emt 0:00:08]} 28. Rxd8+ {[%emt 0:02:13]} Nxd8 {[%emt 0:00:03]} 29. Qe4 {[%emt 0:07:55]} g6 {[%emt 0:08:52]} 30. Nd6 {[%emt 0:07:55]} f5 {[%emt 0:01:20]} 31. Qh4 {[%emt 0:00:16]} Nf7 {[%emt 0:01:22]} 32. Nxf7 {[%emt 0:03:45]} Qxf7 {[%emt 0:00:05]} 33. Qd8+ {[%emt 0:00:37]} Kg7 {[%emt 0:00:16]} 34. Qd6 {[%emt 0:01:29]} e4 {[%emt 0:01:33]} 35. a4 {[%emt 0:00:58]} Qb3 {[%emt 0:01:49]} 36. Qe7+ {[%emt 0:00:36]} Kh6 {[%emt 0:00:13]} 37. Qh4+ {[%emt 0:00:07]} Kg7 {[%emt 0:00:04]} 38. Qe7+ {[%emt 0:00:04]} Kh6 {[%emt 0:00:04]} 39. Qh4+ 1/2-1/2

[Event "ROU-chT 1st League 2019"]
[Site "Mamaia"]
[Date "2019.09.27"]
[Round "7.1"]
[White "Oltean, Dorel"]
[Black "Kuzubov, Yuriy"]
[Result "0-1"]
[ECO "A06"]
[WhiteElo "2333"]
[BlackElo "2636"]
[Annotator "ChessBase"]
[PlyCount "46"]
[EventDate "2019.09.21"]
[EventType "team-tourn"]
[EventCountry "ROU"]
[SourceTitle "playchess.com"]
[Source "ChessBase"]
[SourceQuality "1"]
[TimeControl "40/5400+30:1800+30"]

1. Nf3 {[%emt 0:00:00]} d5 {[%emt 0:00:00]} 2. g3 {[%emt 0:00:16]} Bg4 {[%emt 0:02:49]} 3. Ne5 {[%emt 0:07:16]} Bf5 {[%emt 0:02:39]} 4. c4 {[%emt 0:02:27]} Nd7 {[%emt 0:02:22]} 5. Nxd7 {[%emt 0:01:01]} Qxd7 {[%emt 0:00:05]} 6. Qb3 {[%emt 0:06:48]} c6 {[%emt 0:01:15]} 7. cxd5 {[%emt 0:00:24]} Be4 {[%emt 0:00:16]} 8. f3 {[%emt 0:04:51]} Bxd5 {[%emt 0:00:06]} 9. Qc2 {[%emt 0:00:08]} e5 {[%emt 0:01:09]} 10. Bg2 {[%emt 0:03:23]} f5 {[%emt 0:02:27]} 11. O-O {[%emt 0:08:43]} Nf6 {[%emt 0:01:17]} 12. d3 {[%emt 0:04:34]} h5 {[%emt 0:05:04]} 13. e4 {[%emt 0:10:51]} Be6 {[%emt 0:00:19]} 14. Be3 {[%emt 0:00:10]} h4 {[%emt 0:01:01]} 15. Nd2 {[%emt 0:11:09]} hxg3 {[%emt 0:00:32]} 16. hxg3 {[%emt 0:00:15]} f4 {[%emt 0:14:20]} 17. gxf4 {[%emt 0:14:06]} exf4 {[%emt 0:00:04]} 18. Bxf4 {[%emt 0:00:22]} Nh5 {[%emt 0:07:25]} 19. Be5 {[%emt 0:11:57]} Bd6 {[%emt 0:01:03]} 20. Bxd6 {[%emt 0:04:56]} Qxd6 {[%emt 0:00:07]} 21. Nc4 {[%emt 0:00:04]} Bxc4 {[%emt 0:01:33]} 22. Qxc4 {[%emt 0:01:58]} Nf4 {[%emt 0:01:00]} 23. Rf2 {[%emt 0:03:03]} O-O-O {[%emt 0:00:26]} 0-1

[Event "ROU-chT 1st League 2019"]
[Site "Mamaia"]
[Date "2019.09.27"]
[Round "7.3"]
[White "Oltean, Liviu-Ioan"]
[Black "Rogozenco, Dorian"]
[Result "1/2-1/2"]
[ECO "B30"]
[WhiteElo "2313"]
[BlackElo "2491"]
[Annotator "ChessBase"]
[PlyCount "71"]
[EventDate "2019.09.21"]
[EventType "team-tourn"]
[EventCountry "ROU"]
[SourceTitle "playchess.com"]
[Source "ChessBase"]
[SourceQuality "1"]
[TimeControl "40/5400+30:1800+30"]

1. e4 {[%emt 0:00:00]} c5 {[%emt 0:00:00]} 2. Nf3 {[%emt 0:00:11]} Nc6 {[%emt 0:00:00]} 3. Bb5 {[%emt 0:01:35]} e6 {[%emt 0:00:52]} 4. O-O {[%emt 0:00:47]} Nge7 {[%emt 0:00:22]} 5. Re1 {[%emt 0:03:34]} Ng6 {[%emt 0:04:35]} 6. c3 {[%emt 0:08:27]} a6 {[%emt 0:10:01]} 7. Bf1 {[%emt 0:01:43]} Be7 {[%emt 0:02:27]} 8. d4 {[%emt 0:00:47]} cxd4 {[%emt 0:00:28]} 9. cxd4 {[%emt 0:00:12]} d5 {[%emt 0:00:06]} 10. e5 {[%emt 0:12:43]} O-O {[%emt 0:00:45]} 11. Nc3 {[%emt 0:00:57]} Bd7 {[%emt 0:00:47]} 12. Bd3 {[%emt 0:04:54]} Rc8 {[%emt 0:06:37]} 13. Be3 {[%emt 0:06:24]} Na5 {[%emt 0:04:53]} 14. Qe2 {[%emt 0:03:14]} Nc4 {[%emt 0:03:45]} 15. Rec1 {[%emt 0:09:42]} f5 {[%emt 0:15:10]} 16. exf6 {[%emt 0:03:05]} gxf6 {[%emt 0:00:22]} 17. Bh6 {[%emt 0:01:59]} Re8 {[%emt 0:00:53]} 18. Nh4 {[%emt 0:05:11]} f5 {[%emt 0:04:33]} 19. Nf3 {[%emt 0:02:51]} Bf6 {[%emt 0:01:56]} 20. Rd1 {[%emt 0:12:20]} Nd6 {[%emt 0:10:41]} 21. Rac1 {[%emt 0:04:19]} Nf7 {[%emt 0:10:45]} 22. Qd2 {[%emt 0:01:37]} Qb6 {[%emt 0:05:30]} 23. Be3 {[%emt 0:00:53]} Kh8 {[%emt 0:01:52]} 24. Bb1 {[%emt 0:02:32]} Qd6 {[%emt 0:00:52]} 25. Ne2 {[%emt 0:01:13]} Qf8 {[%emt 0:02:46]} 26. Nf4 {[%emt 0:01:34]} Nxf4 {[%emt 0:00:31]} 27. Bxf4 {[%emt 0:00:14]} Qg7 {[%emt 0:00:08]} 28. Rxc8 {[%emt 0:05:14]} Rxc8 {[%emt 0:00:05]} 29. Re1 {[%emt 0:00:42]} Rg8 {[%emt 0:00:46]} 30. g3 {[%emt 0:00:36]} Rc8 {[%emt 0:06:13]} 31. Kg2 {[%emt 0:01:55]} Kg8 {[%emt 0:02:15]} 32. a3 {[%emt 0:02:05]} Rc4 {[%emt 0:02:00]} 33. Ne5 {[%emt 0:01:39]} Nxe5 {[%emt 0:02:01]} 34. Bxe5 {[%emt 0:00:04]} Bxe5 {[%emt 0:00:10]} 35. Rxe5 {[%emt 0:00:08]} Qg4 {[%emt 0:00:12]} 36. f4 {[%emt 0:00:27]} 1/2-1/2

[Event "ROU-chT 1st League 2019"]
[Site "Mamaia"]
[Date "2019.09.27"]
[Round "7.4"]
[White "Manolache, Marius"]
[Black "Talu, Mircea"]
[Result "1-0"]
[ECO "E46"]
[WhiteElo "2548"]
[BlackElo "2288"]
[Annotator "RC"]
[PlyCount "85"]
[EventDate "2019.09.21"]
[EventType "team-tourn"]
[EventCountry "ROU"]
[SourceTitle "playchess.com"]
[Source "ChessBase"]
[SourceQuality "1"]
[TimeControl "40/5400+30:1800+30"]

1. d4 {[%emt 0:00:00]} Nf6 {[%emt 0:00:00]} 2. c4 {[%emt 0:00:00]} e6 {[%emt 0:00:00]} 3. Nc3 {[%emt 0:00:00]} Bb4 {[%emt 0:00:00]} 4. e3 {[%emt 0:00:00]} O-O {[%emt 0:00:04]} 5. Bd2 {[%emt 0:01:14]} b6 {[%emt 0:00:55]} 6. Bd3 {[%emt 0:04:57]} Bb7 {[%emt 0:02:21]} 7. Nge2 {[%emt 0:02:41]} c5 {[%emt 0:06:21]} 8. a3 {[%emt 0:08:28]} Bxc3 {[%emt 0:00:13]} 9. Bxc3 {[%emt 0:00:21]} Ne4 {[%emt 0:17:38]} 10. Bxe4 {[%emt 0:01:48]} Bxe4 {[%emt 0:00:11]} 11. dxc5 {[%emt 0:03:12]} bxc5 {[%emt 0:04:08]} 12. Qd6 {[%emt 0:00:14]} Nc6 {[%emt 0:04:42]} 13. Rd1 {[%emt 0:05:18]} Qb6 {[%emt 0:01:54]} 14. Qg3 {[%emt 0:05:33]} e5 {[%emt 0:06:18]} 15. O-O {[%emt 0:10:39]} Qc7 {[%emt 0:01:26]} 16. Rd2 {[%emt 0:09:25]} d6 {[%emt 0:02:25]} 17. Rfd1 {[%emt 0:09:31]} Rfd8 {[%emt 0:01:16]} 18. h4 {[%emt 0:04:16]} Bf5 {[%emt 0:06:47]} 19. Nf4 {[%emt 0:00:58]} Ne7 {[%emt 0:07:52]} 20. Nh5 {[%emt 0:06:44]} Ng6 {[%emt 0:05:34]} 21. Qg5 {[%emt 0:06:04]} Be6 {[%emt 0:01:52]} 22. f4 {[%emt 0:00:22]} f6 {[%emt 0:13:36]} 23. Qg3 {[%emt 0:00:07]} Kh8 {[%emt 0:00:51]} 24. e4 {[%emt 0:01:42]} Bxc4 {[%emt 0:09:32]} 25. f5 {[%emt 0:00:08]} Nf8 {[%emt 0:00:07]} 26. Ba5 {[%emt 0:02:29]} Qf7 {[%emt 0:01:02]} 27. Bxd8 {[%emt 0:00:39]} Rxd8 {[%emt 0:00:11]} 28. Qg4 {[%emt 0:00:35]} Bb3 {[%emt 0:01:08]} 29. Rc1 {[%emt 0:00:18]} c4 {[%emt 0:00:45]} 30. Rc3 {[%emt 0:00:30]} a5 {[%emt 0:02:06]} 31. Rd5 {[%emt 0:00:38]} Qa7+ {[%emt 0:00:37]} 32. Kh2 {[%emt 0:00:15]} a4 {[%emt 0:02:09]} 33. Rg3 {[%emt 0:03:29]} c3 {[%emt 0:00:41]} 34. Ra5 {[%emt 0:00:38]} Qf7 {[%emt 0:01:42]} 35. Rxc3 {[%emt 0:00:21]} d5 {[%emt 0:00:33]} 36. exd5 {[%emt 0:00:40]} g6 {[%emt 0:00:06]} 37. Ng3 {[%emt 0:00:26]} Rxd5 {[%emt 0:00:06]} 38. Rxd5 {[%emt 0:00:41]} Qxd5 {[%emt 0:00:06]} 39. Rc8 {[%emt 0:00:25]} Qf7 {[%emt 0:00:59]} 40. h5 {[%emt 0:00:00]} g5 {[%emt 0:00:00]} 41. h6 {[%emt 0:03:54]} Kg8 {[%emt 0:02:48]} 42. Qb4 {[%emt 0:00:18]} Bd5 {[%emt 0:00:09]} 43. Qd6 {[%emt 0:00:27]} 1-0

[Event "ROU-chT 1st League 2019"]
[Site "Mamaia"]
[Date "2019.09.27"]
[Round "7.7"]
[White "Tarlev, Konstantin"]
[Black "Istratescu, Andrei"]
[Result "1/2-1/2"]
[ECO "C42"]
[WhiteElo "2559"]
[BlackElo "2556"]
[Annotator "ChessBase"]
[PlyCount "35"]
[EventDate "2019.09.21"]
[EventType "team-tourn"]
[EventCountry "ROU"]
[SourceTitle "playchess.com"]
[Source "ChessBase"]
[SourceQuality "1"]
[TimeControl "40/5400+30:1800+30"]

1. e4 {[%emt 0:00:00]} e5 {[%emt 0:00:57]} 2. Nf3 {[%emt 0:00:13]} Nf6 {[%emt 0:00:06]} 3. Nxe5 {[%emt 0:01:46]} d6 {[%emt 0:01:44]} 4. Nf3 {[%emt 0:00:03]} Nxe4 {[%emt 0:00:04]} 5. Nc3 {[%emt 0:00:20]} Nxc3 {[%emt 0:00:37]} 6. dxc3 {[%emt 0:00:35]} Be7 {[%emt 0:00:11]} 7. Bf4 {[%emt 0:02:25]} Nd7 {[%emt 0:03:35]} 8. Qd2 {[%emt 0:01:11]} Nc5 {[%emt 0:01:14]} 9. O-O-O {[%emt 0:00:11]} O-O {[%emt 0:00:03]} 10. h4 {[%emt 0:06:29]} Bg4 {[%emt 0:02:19]} 11. Be2 {[%emt 0:02:58]} Re8 {[%emt 0:04:00]} 12. Nd4 {[%emt 0:02:30]} Bxe2 {[%emt 0:11:26]} 13. Qxe2 {[%emt 0:01:59]} Bf6 {[%emt 0:00:09]} 14. Qf3 {[%emt 0:03:22]} Qe7 {[%emt 0:07:26]} 15. Qh3 {[%emt 0:23:45]} Bxd4 {[%emt 0:11:34]} 16. cxd4 {[%emt 0:01:49]} Ne4 {[%emt 0:01:17]} 17. Be3 {[%emt 0:18:32]} Qf6 {[%emt 0:09:47]} 18. Rhf1 {[%emt 0:06:25]} 1/2-1/2

[Event "ROU-chT 1st League 2019"]
[Site "Mamaia"]
[Date "2019.09.27"]
[Round "7.8"]
[White "Aczel, Gergely"]
[Black "Morozov, Nichita"]
[Result "1-0"]
[ECO "E46"]
[WhiteElo "2530"]
[BlackElo "2394"]
[Annotator "ChessBase"]
[PlyCount "91"]
[EventDate "2019.09.21"]
[EventType "team-tourn"]
[EventCountry "ROU"]
[SourceTitle "playchess.com"]
[Source "ChessBase"]
[SourceQuality "1"]
[TimeControl "40/5400+30:1800+30"]

1. d4 {[%emt 0:00:00]} Nf6 {[%emt 0:00:00]} 2. c4 {[%emt 0:00:00]} e6 {[%emt 0:00:00]} 3. Nc3 {[%emt 0:00:00]} Bb4 {[%emt 0:00:00]} 4. e3 {[%emt 0:00:00]} O-O {[%emt 0:00:03]} 5. Bd2 {[%emt 0:00:00]} b6 {[%emt 0:02:03]} 6. Bd3 {[%emt 0:00:00]} Bb7 {[%emt 0:00:46]} 7. Nf3 {[%emt 0:00:02]} c5 {[%emt 0:01:49]} 8. a3 {[%emt 0:00:07]} Bxc3 {[%emt 0:00:18]} 9. Bxc3 {[%emt 0:00:04]} Ne4 {[%emt 0:00:36]} 10. Bxe4 {[%emt 0:00:11]} Bxe4 {[%emt 0:00:04]} 11. dxc5 {[%emt 0:00:14]} bxc5 {[%emt 0:00:51]} 12. Qd6 {[%emt 0:00:15]} Nc6 {[%emt 0:06:03]} 13. Qxc5 {[%emt 0:06:06]} d6 {[%emt 0:01:28]} 14. Qg5 {[%emt 0:27:00]} Qxg5 {[%emt 0:00:48]} 15. Nxg5 {[%emt 0:00:02]} Bd3 {[%emt 0:00:15]} 16. O-O-O {[%emt 0:00:50]} Bxc4 {[%emt 0:00:32]} 17. Rxd6 {[%emt 0:00:05]} Ne7 {[%emt 0:00:21]} 18. e4 {[%emt 0:01:25]} Nc8 {[%emt 0:00:30]} 19. Rd4 {[%emt 0:02:54]} Nb6 {[%emt 0:00:30]} 20. Kc2 {[%emt 0:17:30]} Rfc8 {[%emt 0:02:14]} 21. b3 {[%emt 0:01:38]} e5 {[%emt 0:00:59]} 22. Rxc4 {[%emt 0:04:20]} Nxc4 {[%emt 0:00:10]} 23. bxc4 {[%emt 0:00:06]} Rxc4 {[%emt 0:00:28]} 24. Re1 {[%emt 0:00:25]} Ra4 {[%emt 0:02:29]} 25. Kb3 {[%emt 0:02:21]} Ra6 {[%emt 0:00:24]} 26. Nf3 {[%emt 0:01:10]} Rb8+ {[%emt 0:00:17]} 27. Ka2 {[%emt 0:00:09]} Rc6 {[%emt 0:01:06]} 28. Re3 {[%emt 0:00:17]} f6 {[%emt 0:00:04]} 29. Nd2 {[%emt 0:08:09]} Rd6 {[%emt 0:00:29]} 30. h4 {[%emt 0:02:38]} h5 {[%emt 0:03:01]} 31. g3 {[%emt 0:00:22]} Kf7 {[%emt 0:00:35]} 32. Re2 {[%emt 0:09:23]} Rc6 {[%emt 0:00:55]} 33. Re3 {[%emt 0:01:10]} Rd6 {[%emt 0:00:01]} 34. a4 {[%emt 0:02:47]} Ke6 {[%emt 0:00:21]} 35. a5 {[%emt 0:00:17]} Rc6 {[%emt 0:02:10]} 36. Rd3 {[%emt 0:01:39]} Rd6 {[%emt 0:01:13]} 37. Re3 {[%emt 0:00:07]} Rc6 {[%emt 0:00:10]} 38. f4 {[%emt 0:03:08]} Rd8 {[%emt 0:01:18]} 39. Kb3 {[%emt 0:01:30]} exf4 {[%emt 0:00:17]} 40. gxf4 {[%emt 0:00:00]} Kf7 {[%emt 0:00:00]} 41. e5 {[%emt 0:02:47]} Rd5 {[%emt 0:01:16]} 42. Nc4 {[%emt 0:07:29]} Rdc5 {[%emt 0:03:02]} 43. Nd6+ {[%emt 0:03:41]} Ke6 {[%emt 0:00:02]} 44. exf6+ {[%emt 0:04:59]} Kxd6 {[%emt 0:00:04]} 45. fxg7 {[%emt 0:00:12]} Rb5+ {[%emt 0:00:08]} 46. Bb4+ {[%emt 0:00:18]} 1-0

[Event "ROU-chT 1st League 2019"]
[Site "Mamaia"]
[Date "2019.09.27"]
[Round "7.9"]
[White "Ionescu, Constantin"]
[Black "Miron, Lucian-Costin"]
[Result "0-1"]
[ECO "D02"]
[WhiteElo "2426"]
[BlackElo "2490"]
[Annotator "ChessBase"]
[PlyCount "60"]
[EventDate "2019.09.21"]
[EventType "team-tourn"]
[EventCountry "ROU"]
[SourceTitle "playchess.com"]
[Source "ChessBase"]
[SourceQuality "1"]
[TimeControl "40/5400+30:1800+30"]

1. d4 {[%emt 0:00:00]} d5 {[%emt 0:00:40]} 2. Nf3 {[%emt 0:00:00]} Nf6 {[%emt 0:00:04]} 3. c4 {[%emt 0:00:00]} c6 {[%emt 0:00:42]} 4. Qc2 {[%emt 0:00:05]} g6 {[%emt 0:01:55]} 5. Bf4 {[%emt 0:00:30]} Bg7 {[%emt 0:00:08]} 6. e3 {[%emt 0:00:08]} O-O {[%emt 0:00:27]} 7. Nc3 {[%emt 0:00:13]} c5 {[%emt 0:00:07]} 8. dxc5 {[%emt 0:04:28]} Qa5 {[%emt 0:00:18]} 9. Nd2 {[%emt 0:06:28]} Bf5 {[%emt 0:04:09]} 10. Bd3 {[%emt 0:04:14]} Bxd3 {[%emt 0:03:07]} 11. Qxd3 {[%emt 0:00:09]} Nbd7 {[%emt 0:00:07]} 12. Nb3 {[%emt 0:04:07]} Qa6 {[%emt 0:08:51]} 13. Qe2 {[%emt 0:28:26]} dxc4 {[%emt 0:19:13]} 14. Nd2 {[%emt 0:00:12]} Nxc5 {[%emt 0:06:20]} 15. Nxc4 {[%emt 0:00:53]} Rac8 {[%emt 0:21:32]} 16. Ne5 {[%emt 0:05:23]} Qe6 {[%emt 0:01:27]} 17. Nf3 {[%emt 0:09:41]} Nh5 {[%emt 0:02:19]} 18. Bg3 {[%emt 0:01:31]} Ne4 {[%emt 0:07:12]} 19. Nb5 {[%emt 0:09:17]} Nhxg3 {[%emt 0:05:08]} 20. hxg3 {[%emt 0:00:10]} a6 {[%emt 0:00:18]} 21. Nbd4 {[%emt 0:00:24]} Qxa2 {[%emt 0:00:23]} 22. Rxa2 {[%emt 0:03:36]} Rc1+ {[%emt 0:00:10]} 23. Qd1 {[%emt 0:00:09]} Rxd1+ {[%emt 0:00:02]} 24. Kxd1 {[%emt 0:00:12]} Nxf2+ {[%emt 0:00:04]} 25. Ke1 {[%emt 0:00:12]} Nxh1 {[%emt 0:00:07]} 26. Ne2 {[%emt 0:00:13]} Rc8 {[%emt 0:01:01]} 27. b3 {[%emt 0:00:34]} Bh6 {[%emt 0:00:54]} 28. Rd2 {[%emt 0:02:24]} Bxe3 {[%emt 0:01:29]} 29. Rd7 {[%emt 0:00:07]} Kf8 {[%emt 0:00:47]} 30. Rxb7 {[%emt 0:00:10]} Rd8 {[%emt 0:00:14]} 0-1

[Event "ROU-chT 1st League 2019"]
[Site "Mamaia"]
[Date "2019.09.27"]
[Round "7.10"]
[White "Murariu, Andrei"]
[Black "Cosma, Ioan"]
[Result "1/2-1/2"]
[ECO "B63"]
[WhiteElo "2495"]
[BlackElo "2394"]
[Annotator "ChessBase"]
[PlyCount "101"]
[EventDate "2019.09.21"]
[EventType "team-tourn"]
[EventCountry "ROU"]
[SourceTitle "playchess.com"]
[Source "ChessBase"]
[SourceQuality "1"]
[TimeControl "40/5400+30:1800+30"]

1. e4 {[%emt 0:01:05]} c5 {[%emt 0:00:00]} 2. Nf3 {[%emt 0:00:27]} Nc6 {[%emt 0:00:00]} 3. d4 {[%emt 0:00:12]} cxd4 {[%emt 0:00:04]} 4. Nxd4 {[%emt 0:00:08]} Nf6 {[%emt 0:00:19]} 5. Nc3 {[%emt 0:00:20]} d6 {[%emt 0:00:09]} 6. Bg5 {[%emt 0:01:45]} e6 {[%emt 0:00:08]} 7. Qd2 {[%emt 0:00:20]} Be7 {[%emt 0:00:17]} 8. O-O-O {[%emt 0:00:41]} O-O {[%emt 0:00:22]} 9. f3 {[%emt 0:02:28]} a6 {[%emt 0:00:30]} 10. h4 {[%emt 0:00:31]} Qc7 {[%emt 0:00:47]} 11. Kb1 {[%emt 0:02:04]} Rd8 {[%emt 0:00:44]} 12. g4 {[%emt 0:10:15]} Nxd4 {[%emt 0:22:57]} 13. Qxd4 {[%emt 0:00:13]} b5 {[%emt 0:00:08]} 14. Be3 {[%emt 0:04:40]} Rb8 {[%emt 0:06:27]} 15. g5 {[%emt 0:09:58]} b4 {[%emt 0:01:34]} 16. Ne2 {[%emt 0:20:25]} Nh5 {[%emt 0:11:32]} 17. f4 {[%emt 0:02:23]} a5 {[%emt 0:01:12]} 18. Bg2 {[%emt 0:03:01]} e5 {[%emt 0:01:39]} 19. Qd2 {[%emt 0:10:24]} Bg4 {[%emt 0:00:57]} 20. Rhe1 {[%emt 0:00:30]} d5 {[%emt 0:01:06]} 21. exd5 {[%emt 0:01:10]} exf4 {[%emt 0:00:28]} 22. Bxf4 {[%emt 0:06:17]} Nxf4 {[%emt 0:00:30]} 23. Nxf4 {[%emt 0:00:05]} Bxd1 {[%emt 0:00:17]} 24. Rxd1 {[%emt 0:00:13]} Bd6 {[%emt 0:03:39]} 25. Nd3 {[%emt 0:00:05]} Re8 {[%emt 0:02:56]} 26. h5 {[%emt 0:03:21]} a4 {[%emt 0:08:23]} 27. g6 {[%emt 0:01:32]} hxg6 {[%emt 0:01:42]} 28. hxg6 {[%emt 0:00:05]} fxg6 {[%emt 0:00:33]} 29. Bh3 {[%emt 0:01:18]} Qf7 {[%emt 0:00:37]} 30. Be6 {[%emt 0:03:45]} Rxe6 {[%emt 0:00:06]} 31. dxe6 {[%emt 0:00:03]} Qxe6 {[%emt 0:00:06]} 32. Nf4 {[%emt 0:00:13]} Bxf4 {[%emt 0:00:57]} 33. Qxf4 {[%emt 0:00:05]} Rb5 {[%emt 0:05:15]} 34. Qf3 {[%emt 0:06:42]} a3 {[%emt 0:04:28]} 35. Qb3 {[%emt 0:03:02]} Qxb3 {[%emt 0:01:46]} 36. axb3 {[%emt 0:00:04]} axb2 {[%emt 0:00:06]} 37. Kxb2 {[%emt 0:00:08]} g5 {[%emt 0:00:38]} 38. Rg1 {[%emt 0:01:08]} Kf7 {[%emt 0:00:35]} 39. c3 {[%emt 0:00:18]} Kg6 {[%emt 0:04:14]} 40. cxb4 {[%emt 0:00:00]} Rxb4 {[%emt 0:00:00]} 41. Kc3 {[%emt 0:00:19]} Rf4 {[%emt 0:01:22]} 42. b4 {[%emt 0:05:03]} g4 {[%emt 0:01:13]} 43. b5 {[%emt 0:00:48]} Kg5 {[%emt 0:03:23]} 44. b6 {[%emt 0:00:51]} Rf3+ {[%emt 0:05:42]} 45. Kc4 {[%emt 0:00:51]} Rf2 {[%emt 0:04:13]} 46. Rb1 {[%emt 0:01:56]} Rf8 {[%emt 0:02:05]} 47. b7 {[%emt 0:03:51]} g3 {[%emt 0:00:38]} 48. b8=Q {[%emt 0:01:00]} Rxb8 {[%emt 0:00:04]} 49. Rxb8 {[%emt 0:00:05]} g2 {[%emt 0:00:04]} 50. Rb1 {[%emt 0:00:04]} Kf4 {[%emt 0:00:04]} 51. Kd5 {[%emt 0:00:10] Ke4+} 1/2-1/2

[Event "ROU-chT 1st League 2019"]
[Site "Mamaia"]
[Date "2019.09.27"]
[Round "7.11"]
[White "Itkis, Boris"]
[Black "Filip, Lucian-Ioan"]
[Result "1/2-1/2"]
[ECO "E15"]
[WhiteElo "2323"]
[BlackElo "2419"]
[Annotator "NA"]
[PlyCount "22"]
[EventDate "2019.09.21"]
[EventType "team-tourn"]
[EventCountry "ROU"]
[SourceTitle "playchess.com"]
[Source "ChessBase"]
[SourceQuality "1"]
[TimeControl "40/5400+30:1800+30"]

1. d4 {[%emt 0:00:00]} Nf6 {[%emt 0:00:00]} 2. c4 {[%emt 0:00:00]} e6 {[%emt 0:00:00]} 3. Nf3 {[%emt 0:00:00]} b6 {[%emt 0:00:05]} 4. g3 {[%emt 0:00:38]} Bb4+ {[%emt 0:01:05]} 5. Bd2 {[%emt 0:00:13]} Bxd2+ {[%emt 0:00:08]} 6. Qxd2 {[%emt 0:01:16]} Ba6 {[%emt 0:00:26]} 7. b3 {[%emt 0:01:59]} c6 {[%emt 0:05:24]} 8. Bg2 {[%emt 0:03:27]} d5 {[%emt 0:04:01]} 9. Ne5 {[%emt 0:08:39]} Nfd7 {[%emt 0:01:28]} 10. Nxd7 {[%emt 0:01:11]} Nxd7 {[%emt 0:00:05]} 11. O-O {[%emt 0:01:15]} O-O {[%emt 0:03:03]} 1/2-1/2

[Event "ROU-chT 1st League 2019"]
[Site "Mamaia"]
[Date "2019.09.27"]
[Round "7.12"]
[White "Ognean, Mihnea-Ionut"]
[Black "Ileana, George"]
[Result "0-1"]
[ECO "B90"]
[WhiteElo "2285"]
[BlackElo "2349"]
[Annotator "NA"]
[PlyCount "82"]
[EventDate "2019.09.21"]
[EventType "team-tourn"]
[EventCountry "ROU"]
[SourceTitle "playchess.com"]
[Source "ChessBase"]
[SourceQuality "1"]
[TimeControl "40/5400+30:1800+30"]

1. e4 {[%emt 0:00:00]} c5 {[%emt 0:00:00]} 2. Nf3 {[%emt 0:00:00]} d6 {[%emt 0:00:00]} 3. d4 {[%emt 0:00:00]} cxd4 {[%emt 0:00:00]} 4. Nxd4 {[%emt 0:00:00]} Nf6 {[%emt 0:00:00]} 5. Nc3 {[%emt 0:00:01]} a6 {[%emt 0:00:28]} 6. Be3 {[%emt 0:00:22]} e5 {[%emt 0:00:08]} 7. Nb3 {[%emt 0:00:05]} Be6 {[%emt 0:00:04]} 8. f3 {[%emt 0:00:07]} Be7 {[%emt 0:00:04]} 9. Qd2 {[%emt 0:00:27]} h5 {[%emt 0:00:04]} 10. Nd5 {[%emt 0:00:51]} Nxd5 {[%emt 0:00:14]} 11. exd5 {[%emt 0:00:04]} Bf5 {[%emt 0:00:05]} 12. Be2 {[%emt 0:03:25]} Nd7 {[%emt 0:00:24]} 13. O-O {[%emt 0:00:12]} a5 {[%emt 0:02:00]} 14. a4 {[%emt 0:00:25]} Qc7 {[%emt 0:00:30]} 15. Rac1 {[%emt 0:02:26]} b6 {[%emt 0:02:32]} 16. Bb5 {[%emt 0:02:03]} O-O {[%emt 0:00:44]} 17. c4 {[%emt 0:21:12]} Nc5 {[%emt 0:00:41]} 18. Nxc5 {[%emt 0:00:03]} bxc5 {[%emt 0:00:06]} 19. Rc3 {[%emt 0:00:30]} Bg6 {[%emt 0:02:16]} 20. Rb3 {[%emt 0:01:12]} Rab8 {[%emt 0:00:37]} 21. h3 {[%emt 0:06:26]} f5 {[%emt 0:01:21]} 22. Bg5 {[%emt 0:01:58]} f4 {[%emt 0:12:42]} 23. Bxe7 {[%emt 0:00:34]} Qxe7 {[%emt 0:00:04]} 24. Qxa5 {[%emt 0:00:38]} e4 {[%emt 0:00:03]} 25. Qd2 {[%emt 0:05:42]} e3 {[%emt 0:00:43]} 26. Qe2 {[%emt 0:07:31]} Bf5 {[%emt 0:00:26]} 27. a5 {[%emt 0:04:14]} Ra8 {[%emt 0:00:11]} 28. Ra1 {[%emt 0:03:39]} Bc8 {[%emt 0:03:34]} 29. Qe1 {[%emt 0:15:41]} Rf5 {[%emt 0:03:44]} 30. Bc6 {[%emt 0:04:40]} Ra7 {[%emt 0:00:09]} 31. h4 {[%emt 0:02:51]} Rf8 {[%emt 0:03:15]} 32. Rb6 {[%emt 0:01:18]} g5 {[%emt 0:00:38]} 33. b4 {[%emt 0:01:17]} cxb4 {[%emt 0:03:18]} 34. c5 {[%emt 0:06:12]} g4 {[%emt 0:03:49]} 35. cxd6 {[%emt 0:00:22]} Qg7 {[%emt 0:00:09]} 36. fxg4 {[%emt 0:06:41]} f3 {[%emt 0:01:42]} 37. gxf3 {[%emt 0:00:09]} Bxg4 {[%emt 0:00:16]} 38. Ra2 {[%emt 0:01:38]} Bxf3+ {[%emt 0:01:00]} 39. Kh2 {[%emt 0:00:05]} e2 {[%emt 0:00:09]} 40. Rxe2 {[%emt 0:00:00]} Bxe2 {[%emt 0:00:00]} 41. d7 {[%emt 0:03:11]} Bg4 {[%emt 0:01:21]} 0-1